Cogmind - Beta 9.6 @@@ ROGUE MODE // 2020.06.23 @ 22:07:33 Player: Kenzurith Result: Destroyed by as-81765 with Assembled Blade Performance ------------- Evolutions (0) 0 Regions Visited (4) 800 Robots Destroyed (25) 125 Value Destroyed (557) 557 Prototype IDs (22) 440 Alien Tech Used (0) 0 Bonus (300) 300 TOTAL SCORE: 2222 Bonus ------- Aligned with FarCom 300 Cogmind --------- Core Integrity 0/250 Matter 290/300 Energy 265/265 System Corruption 0% Temperature Cool (0) Movement Walking (210) Ox3 Location -9/Mines Parts ------- > --- POWER (1) -------- Improved Ion Engine > --- PROPULSION (2) --- Aluminum Leg Aluminum Leg > --- UTILITY (2) ------ High-capacity Storage Unit High-capacity Storage Unit > --- WEAPON (2) ------- Autogun Autogun > --- INVENTORY (20) --- Ion Engine Ion Engine Light Treads Aluminum Leg Aluminum Leg Carbon-fiber Leg Large Storage Unit Large Storage Unit Lightpack 2.0 Core Shielding Medium Armor Plating Medium Armor Plating Medium Armor Plating Medium Armor Plating Heavy Assault Rifle Autogun Autogun Rocket Launcher Mace Peak State ------------ > --- POWER ------------ Improved Ion Engine > --- PROPULSION ------- Light Treads Light Treads > --- UTILITY ---------- Lightpack 2.0 > --- WEAPON ----------- Autogun Autogun > --- INVENTORY -------- Ion Engine Aluminum Leg Aluminum Leg Aluminum Leg Aluminum Leg Carbon-fiber Leg Large Storage Unit Large Storage Unit Medium Armor Plating Medium Armor Plating Medium Armor Plating Medium Armor Plating Heavy Assault Rifle Autogun Autogun Mace Mace Mace [Rating: 31] Favorites ----------- Power Improved Ion Engine Engine Improved Ion Engine Power Core Light Nuclear Core Propulsion Light Treads Treads Light Treads Leg Aluminum Leg Utility Large Storage Unit Storage Large Storage Unit Processor Signal Interpreter Weapon Autogun Energy Gun Small Laser Ballistic Gun Autogun Build | -11 -10 -10 -10 -9 ------- Run | Scr Mat Min Exi Min Slots Evolved . | . . . . . Power . | . . . . . Propulsion . | . . . . . Utility . | . . . . . Weapon . | . . . . . Parts Attached 43 | 6 26 5 1 5 Power 7 | 1 3 3 . . Engine 6 | 1 2 3 . . Core 1 | . 1 . . . Reactor . | . . . . . Propulsion 16 | 2 10 2 . 2 Treads 4 | 2 . 2 . . Leg 12 | . 10 . . 2 Wheel . | . . . . . Hover . | . . . . . Flight . | . . . . . Utility 10 | 1 6 . 1 2 Device . | . . . . . Storage 9 | 1 5 . 1 2 Processor 1 | . 1 . . . Hackware . | . . . . . Protection . | . . . . . Artifact . | . . . . . Weapon 10 | 2 7 . . 1 Energy Gun 5 | 1 4 . . . Energy Cannon . | . . . . . Ballistic Gun 5 | 1 3 . . 1 Ballistic Cannon . | . . . . . Launcher . | . . . . . Special Weapon . | . . . . . Impact Weapon . | . . . . . Slashing Weapon . | . . . . . Piercing Weapon . | . . . . . Special Melee Weapon . | . . . . . Unidentified Prototypes . | . . . . . Parts Lost 9 | . 8 . . 1 Power 1 | . 1 . . . Propulsion 2 | . 1 . . 1 Utility . | . . . . . Weapon 6 | . 6 . . . Highest Loss Streak 3 | . 3 . . 1 Average Slot Usage (%) 97 | . 96 100 91 98 Engine 12 | . 7 14 14 14 Core 1 | . 6 . . . Treads 14 | . 6 22 28 . Leg 13 | . 21 5 . 27 Storage 25 | . 23 28 19 26 Energy Gun 2 | . 9 . . . Ballistic Gun 24 | . 14 28 28 27 Naked Turns . | . . . . . Heaviest Build 77 | 12 43 47 45 77 Greatest Support 40 | 40 40 40 40 20 Greatest Overweight (x) 3 | . 2 2 1 3 Average Overweight (x) 1 | . . 1 . 2 Largest Inventory Capacity 24 | 6 16 16 24 24 Average Capacity 16 | 5 10 16 20 20 Most Carried 24 | 6 16 16 24 24 Average Carried 15 | 2 9 15 17 19 Final Capacity 24 | 6 16 16 24 20 Final Carried 24 | 6 16 16 24 20 Class Distribution -------------------- 55% | Mutant 35% | Hauler-Mutant 9% | Scavenger-Mutant Dominant Class ---------------- Mutant | -10/Materials Mutant | -10/Mines Hauler-Mutant | -10/Exiles Hauler-Mutant | -9/Mines Resources | -11 -10 -10 -10 -9 ----------- Run | Scr Mat Min Exi Min Matter Collected 904 | 223 314 218 . 149 Remotely . | . . . . . Salvage Created 823 | . 443 139 . 241 Parts 58 | . 28 19 . 11 Haulers Intercepted . | . . . . . Recyclers Shooed 3 | . . . . 3 Parts Field Recycled . | . . . . . Retrieved Matter . | . . . . . Parts Self-Destructed . | . . . . . Prevented . | . . . . . Kills | -11 -10 -10 -10 -9 ------- Run | Scr Mat Min Exi Min Combat Hostiles Destroyed 22 | . 11 9 . 2 Guns 22 | . 11 9 . 2 Classes Destroyed 5 | . 2 . . 3 Worker 1 | . . . . 1 Recycler 2 | . . . . 2 Swarmer 10 | . 1 9 . . Grunt 11 | . 10 . . 1 Duelist 1 | . . . . 1 Best Kill Streak 5 | . 4 3 . 5 Combat Bots Only 4 | . 4 3 . 2 Max Kills in Single Turn 2 | . 1 1 . 2 Gunslinging . | . . . . . Exploded . | . . . . . Melee . | . . . . . Uniques/NPCs Destroyed . | . . . . . Combat | -11 -10 -10 -10 -9 -------- Run | Scr Mat Min Exi Min Damage Taken 1445 | . 910 264 . 271 Core 272 | . 116 34 . 122 Absorbed by Shields . | . . . . . Core Remaining (%) 100 | 100 . . . . Volleys Fired 78 | . 46 19 . 13 Largest 2 | . 2 2 . 2 Hottest 70 | . 70 46 . 46 Shots Fired 143 | . 79 38 . 26 Gun 143 | . 79 38 . 26 Cannon . | . . . . . Launcher . | . . . . . Special . | . . . . . Kinetic 107 | . 43 38 . 26 Thermal 24 | . 24 . . . Explosive . | . . . . . Electromagnetic 12 | . 12 . . . Robot Hit Streak 11 | . 11 5 . 9 Robot Miss Streak 4 | . 4 4 . 2 Penetration Max . | . . . . . Secondary Targets 5 | . 2 3 . . Max Gunslinging Chain 1 | . 1 1 . . Shots Hit Robots 93 | . 56 21 . 16 Core Hits 41 | . 24 9 . 8 Critical Hits . | . . . . . Critical Kills . | . . . . . Critical Parts Destroyed . | . . . . . Melee Attacks . | . . . . . Impact . | . . . . . Slashing . | . . . . . Piercing . | . . . . . Sneak Attacks . | . . . . . Combat Hostiles . | . . . . . Follow-up Attacks . | . . . . . Damage Inflicted 1183 | . 612 323 . 248 Guns 1183 | . 612 323 . 248 Cannons . | . . . . . Explosions . | . . . . . Melee . | . . . . . Ramming . | . . . . . Kinetic 917 | . 346 323 . 248 Thermal 176 | . 176 . . . Explosive . | . . . . . Electromagnetic 90 | . 90 . . . Impact . | . . . . . Slashing . | . . . . . Piercing . | . . . . . Highest Corruption . | . . . . . Average Corruption . | . . . . . Corruption Purged . | . . . . . Overload Shots . | . . . . . Overflow Damage . | . . . . . Projectiles . | . . . . . Explosions . | . . . . . Melee . | . . . . . Knockbacks . | . . . . . Impact . | . . . . . Kinetic . | . . . . . Secondary . | . . . . . Self-Inflicted Damage . | . . . . . Shots . | . . . . . Rammed . | . . . . . Targets Rammed . | . . . . . Kicked . | . . . . . Crushed . | . . . . . Highest Temperature 246 | . 246 16 . 43 Average Temperature 51 | . 71 7 . 15 Received Heat Transfer 549 | . 495 . . 54 Siege Activations . | . . . . . Robots Corrupted . | . . . . . Combat Hostiles . | . . . . . Parts Fried . | . . . . . Impact Corruptions . | . . . . . Robots Melted . | . . . . . Combat Hostiles . | . . . . . Parts Melted . | . . . . . Heat Transferred 448 | . 448 . . . Parts Sabotaged . | . . . . . Parts Stolen . | . . . . . Parts Stripped . | . . . . . Power Chain Reactions . | . . . . . Missiles Intercepted . | . . . . . Alert | -11 -10 -10 -10 -9 ------- Run | Scr Mat Min Exi Min Peak Influence 160 | . 160 155 . 55 Average Influence 51 | . 69 66 . 24 Maximum Alert Level . | . . . . . Low Security (%) 100 | 100 100 100 . 100 Level 1 . | . . . . . Level 2 . | . . . . . Level 3 . | . . . . . Level 4 . | . . . . . Level 5 . | . . . . . High Security . | . . . . . Max Security . | . . . . . Squads Dispatched 4 | . 4 . . . Investigation 1 | . 1 . . . Extermination . | . . . . . Reinforcement 3 | . 3 . . . Assault . | . . . . . Garrison . | . . . . . Intercept . | . . . . . Construction Impeded . | . . . . . Haulers Reinforced . | . . . . . Stealth | -11 -10 -10 -10 -9 --------- Run | Scr Mat Min Exi Min Distress Signals . | . . . . . Communications Jammed . | . . . . . Distress Signals . | . . . . . Times Spotted 35 | . 15 8 . 12 Peak Tracking Total 11 | . 4 3 . 11 Tactical Retreats 1 | . 1 . . . Traps | -11 -10 -10 -10 -9 ------- Run | Scr Mat Min Exi Min Traps Triggered 1 | . 1 . . . Indirectly . | . . . . . Trap Hack Attempts . | . . . . . Triggered . | . . . . . Disarmed . | . . . . . Reprogrammed . | . . . . . Reused . | . . . . . Traps Extracted . | . . . . . Installed . | . . . . . Triggered . | . . . . . Machines | -11 -10 -10 -10 -9 ---------- Run | Scr Mat Min Exi Min Machines Disabled 1 | . . 1 . . Max in Single Turn 1 | . . 1 . . Machines Sabotaged . | . . . . . Garrisons Compromised . | . . . . . Overloaded Fab Kills . | . . . . . Fab Network Shutdowns . | . . . . . Hacking | -11 -10 -10 -10 -9 --------- Run | Scr Mat Min Exi Min Machines Accessed 2 | . 1 . 1 . Terminals 1 | . 1 . . . Fabricators . | . . . . . Repair Stations . | . . . . . Recycling Units . | . . . . . Scanalyzers . | . . . . . Garrison Access . | . . . . . Total Hacks 4 | . 3 . 1 . Successful 2 | . 1 . 1 . Failed 2 | . 2 . . . Catastrophic 1 | . 1 . . . Database Lockouts . | . . . . . Manual 6 | . 3 . 3 . Terminals 3 | . 3 . . . Fabricators . | . . . . . Repair Stations . | . . . . . Recycling Units . | . . . . . Scanalyzers . | . . . . . Garrison Access . | . . . . . Terminal Hacks 2 | . 1 . 1 . Unreport Threat 1 | . 1 . . . EX-Prototype ID Bank 1 | . . . 1 . Fabricator Hacks . | . . . . . Repair Station Hacks . | . . . . . Recycling Unit Hacks . | . . . . . Scanalyzer . | . . . . . Garrison Access Hacks . | . . . . . Unauthorized Hacks . | . . . . . Terminals . | . . . . . Fabricators . | . . . . . Repair Stations . | . . . . . Recycling Units . | . . . . . Scanalyzers . | . . . . . Garrison Access . | . . . . . Data Cores Recovered . | . . . . . Used . | . . . . . Hacking Detections 1 | . 1 . . . Full Trace Events 1 | . 1 . . . Feedback Events . | . . . . . Feedback Blocked . | . . . . . Robot Schematics Acquired . | . . . . . Robots Built . | . . . . . Matter . | . . . . . Time . | . . . . . Total Robot Build Rating . | . . . . . Part Schematics Acquired . | . . . . . Parts Built . | . . . . . Matter . | . . . . . Time . | . . . . . Total Part Build Rating . | . . . . . Parts Repaired . | . . . . . Time . | . . . . . Parts Recycled . | . . . . . Recycled Matter . | . . . . . Retrieved Matter . | . . . . . Retrieved Components . | . . . . . Parts Scanalyzed . | . . . . . Part Schematics Acquired . | . . . . . Parts Damaged . | . . . . . Bothacking | -11 -10 -10 -10 -9 ------------ Run | Scr Mat Min Exi Min Used RIF Installer . | . . . . . Robots Hacked . | . . . . . Non-combat . | . . . . . Combat . | . . . . . Robot Hacks Applied . | . . . . . Relay Couplers Released . | . . . . . Robots Rewired . | . . . . . Allies Hacked . | . . . . . Hacks Repelled . | . . . . . Allies | -11 -10 -10 -10 -9 -------- Run | Scr Mat Min Exi Min Total Allies . | . . . . . Largest Group . | . . . . . Highest-Rated Group . | . . . . . Highest-Rated Ally . | . . . . . Total Orders . | . . . . . Ally Attacks . | . . . . . Total Damage . | . . . . . Kills . | . . . . . Allies Corrupted . | . . . . . Allies Melted 1 | . . . . 1 Intel | -11 -10 -10 -10 -9 ------- Run | Scr Mat Min Exi Min Robot Analysis Total . | . . . . . Derelict Logs Recovered 2 | . . 1 . 1 Drone Launches . | . . . . . Drone Recoveries . | . . . . . Exploration | -11 -10 -10 -10 -9 ------------- Run | Scr Mat Min Exi Min Turns Passed 3405 | 115 756 1088 605 841 Spaces Moved 1750 | 66 404 560 347 373 Core 4 | 4 . . . . Treads 939 | 62 80 450 347 . Legs 807 | . 324 110 . 373 Wheels . | . . . . . Hover . | . . . . . Flight . | . . . . . Fastest Speed 50 | 50 120 180 160 120 Average Speed 172 | 153 142 180 167 203 Slowest Speed 210 | 160 180 200 180 210 Overloaded Moves . | . . . . . Propulsion Burnouts . | . . . . . Robots Hopped . | . . . . . Cave-ins Triggered . | . . . . . Exploration Rate (%) 52 | 5 40 95 68 56 Regions Visited 4 Branch Regions 3 Pre-discovered Areas 2 | . . 1 . 1 Known Exits Taken . | . . . . . Unknown Exits Taken 4 | 1 1 1 1 . Scrap Searched 2 | . . 2 . . Spaces Dug . | . . . . . Terrain Destroyed . | . . . . . Melee . | . . . . . Projectile . | . . . . . AOE . | . . . . . Actions | -11 -10 -10 -10 -9 --------- Run | Scr Mat Min Exi Min Total 2025 | 77 524 612 370 442 Wait 37 | . 2 20 1 14 Move 1746 | 65 403 559 346 373 Hop . | . . . . . Pick Up 77 | 6 23 2 20 26 Fast Attach 23 | 6 11 4 1 1 Attach 11 | . 7 . . 4 Detach 4 | . 3 . . 1 Swap 9 | . 8 1 . . Drop 40 | . 21 7 2 10 Fire 78 | . 46 19 . 13 Melee . | . . . . . Ram . | . . . . . Kick . | . . . . . Crush . | . . . . . Escape Stasis . | . . . . . Rewire . | . . . . . Trap . | . . . . . Miscellaneous . | . . . . . Route ------- -11/Scrapyard -10/Materials (discovered 2 exits: [*Min x2]) -10/Mines (discovered 2 exits: [*Mat] / *Exi) -10/Exiles -9/Mines History --------- Turn | Location | Event 2 | -11/Scrapyard | Met Revision 17 24 | -11/Scrapyard | Discovered new exit (range 15) 116 | -11/Scrapyard | Entered Materials 311 | -10/Materials | Build established: Mutant 373 | -10/Materials | Lost 3 parts (1n2w) 497 | -10/Materials | Discovered new exit (range 7) 604 | -10/Materials | Discovered new exit (range 7) 656 | -10/Materials | Build established: Scavenger-Mutant 725 | -10/Materials | Lost 3 parts (1p2w) 872 | -10/Materials | Entered Mines 985 | -10/Mines | Build established: Mutant 1064 | -10/Mines | Joined a pair of Derelicts in attacking an 0b10 outpost 1403 | -10/Mines | Core integrity fell below 50% 1469 | -10/Mines | Learned 4 Materials zone layouts 1626 | -10/Mines | Learned location of Storage (-7) 1828 | -10/Mines | Discovered new exit (range 15) 1953 | -10/Mines | Deemed a non-threat by the Exiles lab entrance 1953 | -10/Mines | Discovered new exit (range 5) 1960 | -10/Mines | Entered Exiles 2005 | -10/Exiles | Met 8R-AWN 2038 | -10/Exiles | Met EX-HEX 2086 | -10/Exiles | Met EX-BIN 2113 | -10/Exiles | Aligned with FarCom system 2115 | -10/Exiles | Given EX-Vault access code 2161 | -10/Exiles | Opened EX-Vault 2222 | -10/Exiles | Found Lightpack 2.0 2297 | -10/Exiles | Warned to stay clear of 0b10 Research branches 2345 | -10/Exiles | Met EX-DEC 2509 | -10/Exiles | Build established: Hauler-Mutant 2546 | -10/Exiles | Discovered new exit (range 11) 2565 | -10/Exiles | Left Exiles lab with Lightpack 2.0 2565 | -10/Exiles | Entered Mines 2573 | -9/Mines | Core integrity fell below 20% 3383 | -9/Mines | Assembled infested the area 3388 | -9/Mines | Assisted by a Guerilla fighting off Assembled 3406 | -9/Mines | Destroyed by as-81765 with Assembled Blade Last Messages --------------- 02771_ Acquired Hvy. Assault Rifle. 02980_ K-01 Serf collects debris. 03046_ Dropped Autogun. 03047_ Dropped Mace. 03047_ Acquired Rocket Launcher. 03050_ Acquired Autogun. 03152_ Acquired derelict log, extracted data. World map confirmed: -7/Storage. 03383_ ALERT: Infestation in the mines, dispatching Demolisher response squad. 03387_ H7-A5G(h): "I'll hold them off! Go on ahead or try to find another way!" 03387_ HV Slug penetrates as-12090. 03387_ as-12090 suffers critical hit. 03387_ as-12090 destroyed. 03388_ A derelict emerges from the shadows: "You need to get out of here! I've been tracking a group of Assembled to figure out where they're coming from, and they're closing on this area, come on!" 03389_ HV Slug penetrates Wall. 03398_ H7-A5G(h) system corrupted by crushing effect. Map ----- +----------------------------------------------------+ | ?#!!! ##### ## ##??????????# ### ###??? | | ?#/ %#???# # ####??###### #?## ##?? | | ?# =#???# # #### ## #??# ### | | ?# #???# ## #??## | | ?#######??## ##??## ### | | ??????????# #???## ##?? | | ??????????# #### ##???## ##??? | | ??????????## # ##??## ##???####??## | | ???????????# ### #????# ## #????????## | | ???????????# #?# #????# #### #???????## | | ???????????# ### #????## ###??# #??????## | | ???????????# #?????# ###???## ##??????# | | ???????????# ######?????# #????## ##???????# | | ???????????# #??????????# #????# #????????## | | ???????????# #??????????# #????# #######???## | | ???????????# #??????????# #????# #????## | | ??????????? #??????????# ####### #?????# | | ???????????" ??????????# ######## #??#### | | ???????????" ??? r ##### #??????# #?## | | ???????????" ??######### #???# #??????# ### | | ??????????? ??????????# #??## ##?????# | | ??????????? ??????????# #?## ##????# | | ??????????? ??????????# #?# #????###### | | ??????????? ??????????# ### #?????????## | | ??????????? ????????### ## ##??????????## # | | ???????????? ????????# @ #????????????#### | | ???????????? ????????# a#### #??????????????? | | ??????????????????##### #??## #??????????????? | | ?????????????????## ##a #???# #??????????????? | | ?????????????????# a #???## #??????????????? | | ?????????????????# #????## #?????????????? | | ????????????d????# """a ##?????# #????????????? | | ????????????????## """ #??????# #???????????? | | ?????????????d??# """ #??????? #???????????? | | ???????????????# ##??????? #???????????? | | ?????????????? ##???????? ##???????????? | | ???????????? ###????????? #????????????? | | ?????????? ##??????????? ????????????? | | ?????????##### ##???????????? ????????????? | | ?????????????## ###?????????????????????????????? | | ??????????????# ????????????????????????????????? | | ??????????????# ????????????????????????????????? | | ??????????????" ????????????????????????????????? | | ??????????????! %????????????????????????????????? | | ??????????????# ????????????????????????????????? | | ??????????????##?????????????????????????????????? | | ?????????????????????????????????????????????????? | | ?????????????????????????????????????????????????? | | ?????????????????????????????????????????????????? | | ?????????????????????????????????????????????????? | +----------------------------------------------------+ Best States ------------- Heat Dissipation 25 Energy Generation 14 Energy Capacity 265 Matter Stores 300 Matter Capacity 300 Sight Range 16 Terrain Scan Density 10 Evasion (%) 40 Recoil Reduction 2 Item Schematics ----------------- None Robot Schematics ------------------ None Fabricated ------------ Nothing Alien Tech Used ----------------- None Achievements -------------- None Challenges ------------ None Game ------ Seed AssembledPowerNullifier Manual? 0 Play Time 00:27:30 Cumulative 155.5 hours Start 2020.06.23 @ 20:38:37 End 2020.06.23 @ 22:07:33 Sessions 1 Manual Loads 0 Difficulty Rogue Special Mode None Game No. 85 Rogue 83 Adventurer 1 Explorer 1 Win Type - Total 2 Types 2/0/0/0/0/0/0 Lore% 58 Gallery% 71 Achievement% 53 Wizard Run 0 Options --------- ASCII 0 Keyboard 1 Movement Numpad Keybinds 0 Fullscreen 2 Font 24/Terminus Map View 76x50 Tactical HUD 1 Map Filters NONE Filters NONE Steam 1 RUN: 6991e9fa-764b-4f54-a733-c6736aae12cc